fUST/lending_fUST_20250913
["ID","MTS","AMOUNT","RATE_DAILY","PERIOD"]
[385315198,1757766649934,-480.0,0.00024657,3]
[385315199,1757766649943,-480.0,0.00024657,3]
[385315200,1757766649953,-480.0,0.00024657,3]
[385315201,1757766649962,-480.0,0.00024657,3]
[385315202,1757766649971,-233.1568031,0.00024657,3]
[385315203,1757766649980,-480.0,0.00024657,3]
[385315204,1757766649989,-480.0,0.00024657,3]
[385315205,1757766649998,-480.0,0.00024657,3]
[385315206,1757766650007,-480.0,0.00024657,3]
[385315207,1757766650016,-1321.78,0.00024657,3]
[385315208,1757766650026,-2806.34,0.00024657,3]
[385315209,1757766650035,-480.0,0.00024657,3]
[385315210,1757766650044,-542.2,0.00024657,3]
[385315211,1757766650053,-616.57,0.00024657,3]
[385315212,1757766650062,-480.0,0.00024657,3]
[385315213,1757766650072,-480.0,0.00024657,3]
[385315214,1757766650081,-480.0,0.00024657,3]
[385315215,1757766650090,-480.0,0.00024657,3]
[385315216,1757766650099,-2960.36,0.00024657,3]
[385315217,1757766650107,-480.0,0.00024657,3]
[385315218,1757766650116,-151.0,0.00024657,7]
[385315219,1757766650126,-480.0,0.00024657,3]
[385315220,1757766650135,-2570.41,0.00024657,3]
[385315221,1757766650144,-151.0,0.00024657,7]
[385315222,1757766650153,-233.74707378,0.00024657,3]
[385315223,1757766650183,-500.0,0.00024554,2]
[385315224,1757766650192,-331.9621756,0.00024657,3]
[385315225,1757766650203,-151.0,0.00024657,7]
[385315226,1757766650213,-151.0,0.00024657,7]
[385315227,1757766650222,-879.76,0.00024657,3]
[385315228,1757766650232,-151.0,0.00024657,7]
[385315229,1757766650242,-65.83169038,0.00024657,7]
[385315230,1757766650258,-85.16830962,0.00024657,7]
[385315231,1757766650268,-480.0,0.00024657,3]
[385315232,1757766650277,-480.0,0.00024657,3]
[385315233,1757766650287,-480.0,0.00024657,3]
[385315234,1757766650297,-480.0,0.00024657,3]
[385315235,1757766650308,-151.0,0.00024657,7]
[385315236,1757766650317,-151.0,0.00024657,7]
[385315237,1757766650327,-51.31291793,0.00024657,3]
[385315238,1757766650338,-109.68708207,0.00024657,3]
[385315239,1757766650347,-480.0,0.00024657,3]
[385315240,1757766650356,-151.0,0.00024657,7]
[385315241,1757766650365,-151.0,0.00024657,7]
[385315242,1757766650376,-161.0,0.00024657,3]
[385315243,1757766650385,-166.0,0.00024657,3]
[385315244,1757766650395,-160.0,0.00024657,3]
[385315245,1757766650404,-166.0,0.00024657,3]
[385315246,1757766650413,-480.0,0.00024657,3]
[385315247,1757766650423,-498.66242985,0.00024657,3]
[385315248,1757766650432,-76.46048808,0.00024657,3]
[385315275,1757766774430,200.0,0.00029338,60]
[385315276,1757766837603,151.0,0.00027397,120]
[385315288,1757766846764,151.0,0.00027397,120]
[385315290,1757766863085,151.0,0.00027397,120]
[385315292,1757766895788,151.0,0.00027397,120]
[385315293,1757766902574,151.0,0.00027397,120]
[385315294,1757766910676,151.0,0.00027397,120]
[385315295,1757766933235,151.0,0.00027397,120]
[385315296,1757766947094,151.0,0.00027397,120]
[385315297,1757766958001,151.0,0.00027397,120]
[385315298,1757766993049,151.0,0.00027397,120]
[385315299,1757767017398,197.91731092,0.00027397,120]
[385315348,1757767831946,-2976.78361274,0.000199,2]
[385315354,1757767831999,-2007.66769741,0.000199,2]
[385315356,1757767832009,-300.0,0.00021148,2]
[385315358,1757767832018,-300.0,0.00021148,2]
[385315360,1757767832027,-300.0,0.00021148,2]
[385315362,1757767832036,-1200.0,0.00021148,2]
[385315364,1757767832046,-300.0,0.00021148,2]
[385315367,1757767832055,-4984.45130986,0.00021149,2]
[385315370,1757767832064,-1200.0,0.0002137,2]
[385315372,1757767832073,-893.524463,0.00021371,2]
[385315374,1757767832082,-250.0,0.00022106,2]
[385315376,1757767832091,-4984.45130986,0.00022398,2]
[385315379,1757767832101,-1004.435494,0.000228,2]
[385315382,1757767832110,-23884.39078972,0.000228,2]
[385315385,1757767832122,-255.57243791,0.000228,2]
[385315387,1757767832133,-983.96121195,0.000228,2]
[385315390,1757767832144,-324.08921439,0.000228,2]
[385315392,1757767832155,-614.01773707,0.000228,2]
[385315394,1757767832166,-1166.93915018,0.000228,2]
[385315397,1757767832181,-22771.02945878,0.000228,2]
[385315399,1757767832191,-420.0,0.00023001,2]
[385315401,1757767832200,-1200.0,0.00023238,2]
[385315403,1757767832209,-1000.0,0.000233,2]
[385315405,1757767832218,-810.0,0.00023601,2]
[385315407,1757767832227,-4984.45130986,0.00023647,2]
[385315409,1757767832236,-1000.0,0.000238,2]
[385315411,1757767832245,-810.0,0.00023964,2]
[385315412,1757767832254,-810.0,0.00024009,2]
[385315413,1757767832263,-7560.63441765,0.00024052,2]
[385315414,1757767832272,-450.883,0.00024063,5]
[385315415,1757767832281,-328.45169712,0.00024152,2]
[385315416,1757767832293,-168.0,0.00024219,2]
[385315417,1757767832302,-1000.0,0.000243,2]
[385315418,1757767832311,-233.1568031,0.00024397,2]
[385315419,1757767832320,-160.0,0.00024397,2]
[385315420,1757767832331,-19597.68751184,0.000244,2]
[385315421,1757767832340,-1000.0,0.00024555,5]
[385315422,1757767832349,-705.69905855,0.00024557,2]
[385315423,1757767832358,-148795.83328527,0.000246,2]
[385315424,1757767832375,-10046.19163911,0.000246,2]
[385315425,1757767832386,-8913.17181344,0.000246,2]
[385315512,1757767837815,-3474.04165162,0.000246,2]
[385315513,1757767837827,-8510.25959167,0.000246,2]
[385315514,1757767837875,-2132.41304471,0.000246,2]
[385315515,1757767837887,-16109.31559956,0.000246,2]
[385315516,1757767837898,-2185.73455985,0.000246,2]
[385315531,1757767839910,-1086.64761428,0.000246,2]
[385315548,1757767840257,-19123.70312113,0.000246,2]
[385315549,1757767840268,-3502.94299894,0.000246,2]
[385315550,1757767840282,-3694.95,0.000246,2]
[385315551,1757767840297,-7223.66893213,0.000246,2]
[385315597,1757767846098,-5919.82181791,0.000246,2]
[385315601,1757767958935,496.10536122,0.00029346,120]
[385315603,1757767977920,500.0,0.00025575,120]
[385315604,1757767978728,252.32,0.00025575,120]
[385315660,1757769032321,-544.32532797,0.00018925,2]
[385315662,1757769032376,-1000.0,0.00018925,2]
[385315669,1757769032432,-216.74264377,0.00018925,2]
[385315671,1757769032441,-4319.85780213,0.000199,2]
[385315673,1757769032451,-228.0,0.0002,2]
[385315675,1757769032459,-228.0,0.000202,2]
[385315678,1757769032469,-300.0,0.00021147,2]
[385315681,1757769032479,-300.0,0.00021148,2]
[385315683,1757769032488,-300.0,0.00021148,2]
[385315685,1757769032497,-300.0,0.00021148,2]
[385315687,1757769032506,-4319.85780187,0.00021149,2]
[385315689,1757769032515,-446.762231,0.00022109,2]
[385315692,1757769032524,-10288.37839633,0.00022132,2]
[385316082,1757769038043,-9558.92908601,0.00022132,2]
[385316083,1757769038055,-15802.96920826,0.00022132,2]
[385316084,1757769038066,-695.94,0.00022132,2]
[385316085,1757769038098,-2005.41486483,0.00022132,2]
[385316086,1757769038112,-367.27503567,0.00022132,2]
[385316087,1757769038122,-177.197458,0.00022132,2]
[385316088,1757769038131,-610.61766326,0.00022202,2]
[385316089,1757769038140,-1457.59296542,0.00022398,2]
[385316090,1757769038156,-2862.26483645,0.00022398,2]
[385316091,1757769038166,-515.06683639,0.00022698,2]
[385316111,1757769040294,-7.73993131,0.00022698,2]
[385316112,1757769040303,-420.0,0.00023001,2]
[385316113,1757769040313,-381.23498139,0.0002337,2]
[385316114,1757769040322,-4319.85780187,0.00023647,2]
[385316115,1757769040332,-532.0,0.00023852,2]
[385316116,1757769040341,-160.0,0.00024401,2]
[385316117,1757769040350,-654.61076809,0.000245,5]
[385316118,1757769040360,-564.55924684,0.00024557,2]
[385316119,1757769040369,-1563.3981633,0.00024557,2]
[385316120,1757769040378,-29771.80551526,0.000246,2]
[385316121,1757769040389,-34240.42171326,0.000246,2]
[385316122,1757769040400,-4320.38723079,0.000246,2]
[385316123,1757769040420,-843.63590484,0.000246,2]
[385316124,1757769040431,-9591.55289367,0.000246,2]
[385316170,1757769373419,402.07966424,0.00027397,120]
[385316179,1757769849446,3500.0,0.0002935,60]
[385316264,1757770237220,-433.26733068,0.000199,2]
[385316313,1757770238385,-3310.60943096,0.000199,2]
[385316315,1757770238394,-228.0,0.0002,2]
[385316317,1757770238404,-228.0,0.000202,2]
[385316319,1757770238413,-3743.87676162,0.00021149,2]
[385316322,1757770238422,-320.93533168,0.00022202,2]
[385316325,1757770238431,-1282.45758539,0.00022202,2]
[385316328,1757770238440,-3743.87676162,0.00022398,2]
[385316330,1757770238449,-16619.9740498,0.00022882,2]
[385316333,1757770238458,-1053.149614,0.00022923,2]
[385316336,1757770238467,-3743.87676162,0.00023647,2]
[385316338,1757770238476,-598.0,0.00023674,2]
[385316340,1757770238485,-598.0,0.00023693,2]
[385316342,1757770238494,-598.0,0.00023714,2]
[385316343,1757770238503,-598.0,0.0002384,2]
[385316345,1757770238512,-2553.9052637,0.00023896,2]
[385316347,1757770238522,-598.0,0.00023937,2]
[385316349,1757770238532,-249.49999852,0.00024,2]
[385316351,1757770238541,-168.0,0.00024025,2]
[385316353,1757770238550,-598.0,0.00024032,2]
[385316355,1757770238559,-160.0,0.00024285,2]
[385316357,1757770238569,-160.0,0.00024285,2]
[385316359,1757770238579,-531.13137412,0.00024285,2]
[385316361,1757770238588,-217.73838971,0.00024285,2]
[385316363,1757770238597,-160.0,0.00024285,2]
[385316364,1757770238606,-233.1568031,0.00024285,2]
[385316366,1757770238615,-160.0,0.00024285,2]
[385316368,1757770238624,-160.0,0.00024285,2]
[385316370,1757770238633,-315.9339473,0.00024285,2]
[385316372,1757770238644,-358.33781358,0.00024285,2]
[385316423,1757770240530,-172.85599285,0.00024285,2]
[385316424,1757770240539,-168.0,0.00024326,2]
[385316426,1757770240549,-300.0000005,0.000244,2]
[385316428,1757770240558,-598.0,0.00024406,2]
[385316430,1757770240567,-161.0,0.000245,5]
[385316432,1757770240576,-588.9047776,0.00024557,2]
[385316434,1757770240586,-360.707,0.00024557,7]
[385316436,1757770240595,-1186.68788576,0.00024557,2]
[385316438,1757770240604,-451.64739748,0.00024557,2]
[385316440,1757770240614,-70761.75097352,0.000246,2]
[385316478,1757770243737,-327.0214455,0.000246,2]
[385316479,1757770243749,-607.59921339,0.000246,2]
[385316480,1757770243767,-2000.046951,0.000246,2]
[385316516,1757770246843,-30764.46812173,0.000246,2]
[385316625,1757771432672,-1560.84570219,0.000199,2]
[385316626,1757771432684,-374.10780233,0.000199,2]
[385316627,1757771432695,-1309.739689,0.000199,2]
[385316628,1757771432704,-228.0,0.0002,2]
[385316629,1757771432713,-228.0,0.000202,2]
[385316630,1757771432723,-680.1017782,0.00021149,2]
[385316631,1757771432746,-2564.5914152,0.00021149,2]
[385316632,1757771432755,-237.1747107,0.00021432,2]
[385316633,1757771432767,-7590.99216454,0.00021432,2]
[385316634,1757771432776,-626.816031,0.00021525,2]
[385316635,1757771432785,-3244.6931934,0.00022398,2]
[385316636,1757771432794,-3244.6931934,0.00023647,2]
[385316637,1757771432804,-30000.0,0.00024,2]
[385316638,1757771432812,-3792.90463247,0.00024093,2]
[385316640,1757771432821,-288.565,0.00024093,5]
[385316642,1757771432831,-161.7920066,0.00024384,2]
[385316644,1757771432841,-1611.35,0.00024546,3]
[385316645,1757771432850,-24630.49968022,0.00024554,2]
[385316647,1757771432859,-500.0,0.00024555,2]
[385316649,1757771432872,-1535.80945609,0.00024556,2]
[385316650,1757771432882,-5289.51189861,0.00024556,2]
[385316651,1757771432894,-446.55424473,0.00024556,2]
[385316657,1757771438563,-8836.0,0.00024556,2]
[385316658,1757771438574,-59736.21219467,0.00024556,2]
[385316659,1757771438583,-151.0,0.00024556,7]
[385316660,1757771438593,-151.0,0.00024556,7]
[385316661,1757771438602,-240.140847,0.00024556,7]
[385316662,1757771438611,-151.0,0.00024556,7]
[385316663,1757771438622,-151.0,0.00024556,7]
[385316664,1757771438631,-151.0,0.00024556,7]
[385316665,1757771438641,-151.0,0.00024556,7]
[385316666,1757771438650,-151.0,0.00024556,7]
[385316667,1757771438660,-243.34256,0.00024556,7]
[385316668,1757771438669,-151.0,0.00024556,7]
[385316669,1757771438679,-151.0,0.00024556,7]
[385316670,1757771438688,-151.0,0.00024556,7]
[385316671,1757771438698,-213.979174,0.00024556,7]
[385316672,1757771438708,-168.935064,0.00024556,7]
[385316673,1757771438717,-168.935064,0.00024556,7]
[385316674,1757771438726,-168.935064,0.00024556,7]
[385316675,1757771438735,-168.935064,0.00024556,7]
[385316676,1757771438744,-151.0,0.00024556,7]
[385316677,1757771438754,-151.0,0.00024556,7]
[385316678,1757771438763,-151.0,0.00024556,7]
[385316679,1757771438772,-151.0,0.00024556,7]
[385316680,1757771438781,-151.0,0.00024556,7]
[385316681,1757771438791,-213.05801,0.00024556,7]
[385316682,1757771438800,-213.05801,0.00024556,7]
[385316683,1757771438809,-213.05801,0.00024556,7]
[385316684,1757771438818,-213.05801,0.00024556,7]
[385316685,1757771438827,-183.288664,0.00024556,7]
[385316686,1757771438836,-183.288664,0.00024556,7]
[385316687,1757771438845,-183.288664,0.00024556,7]
[385316688,1757771438854,-183.288664,0.00024556,7]
[385316689,1757771438863,-151.0,0.00024556,7]
[385316690,1757771438874,-151.0,0.00024556,7]
[385316691,1757771438883,-151.0,0.00024556,7]
[385316692,1757771438893,-151.0,0.00024556,7]
[385316693,1757771438903,-157.508545,0.00024556,7]
[385316694,1757771438912,-151.0,0.00024556,7]
[385316695,1757771438922,-151.0,0.00024556,7]
[385316696,1757771438931,-151.0,0.00024556,7]
[385316697,1757771438940,-151.0,0.00024556,7]
[385316698,1757771438949,-151.0,0.00024556,7]
[385316699,1757771438960,-500.0,0.00024557,2]
[385316700,1757771438970,-1097.90278702,0.00024557,2]
[385316701,1757771438979,-1003.70481256,0.00024557,2]
[385316702,1757771438988,-14860.96907185,0.000246,2]
[385316703,1757771439000,-36359.30173443,0.000246,2]
[385316719,1757771440677,-66254.19877735,0.000246,2]
[385316720,1757771440687,-205.01,0.000246,2]
[385316721,1757771440697,-900.0,0.000246,2]
[385316722,1757771440707,-166.0,0.000246,3]
[385316723,1757771440716,-166.0,0.000246,3]
[385316724,1757771440726,-172.0,0.000246,3]
[385316725,1757771440735,-154.59988194,0.000246,3]
[385316726,1757771440745,-156.0,0.000246,3]
[385316727,1757771440754,-156.0,0.000246,3]
[385316728,1757771440764,-156.0,0.000246,3]
[385316729,1757771440773,-156.0,0.000246,3]
[385316730,1757771440782,-151.0,0.000246,3]
[385316731,1757771440792,-151.0,0.000246,3]
[385316732,1757771440801,-151.0,0.000246,3]
[385316733,1757771440810,-151.0,0.000246,3]
[385316734,1757771440819,-151.0,0.000246,3]
[385316735,1757771440828,-151.0,0.000246,3]
[385316736,1757771440838,-151.0,0.000246,3]
[385316737,1757771440847,-151.0,0.000246,3]
[385316738,1757771440857,-151.0,0.000246,3]
[385316739,1757771440867,-151.0,0.000246,3]
[385316740,1757771440879,-151.0,0.000246,3]
[385316741,1757771440889,-151.0,0.000246,3]
[385316742,1757771440898,-151.0,0.000246,3]
[385316743,1757771440908,-151.0,0.000246,3]
[385316744,1757771440917,-151.0,0.000246,3]
[385316745,1757771440927,-151.0,0.000246,3]
[385316746,1757771440937,-151.0,0.000246,3]
[385316747,1757771440946,-151.0,0.000246,3]
[385316748,1757771440956,-151.0,0.000246,3]
[385316749,1757771440965,-151.0,0.000246,3]
[385316750,1757771440974,-151.0,0.000246,3]
[385316751,1757771440983,-151.0,0.000246,3]
[385316752,1757771440993,-151.0,0.000246,3]
[385316753,1757771441002,-151.0,0.000246,3]
[385316754,1757771441011,-151.0,0.000246,3]
[385316755,1757771441020,-151.0,0.000246,3]
[385316756,1757771441028,-151.0,0.000246,3]
[385316757,1757771441038,-151.0,0.000246,3]
[385316758,1757771441048,-151.0,0.000246,3]
[385316759,1757771441057,-151.0,0.000246,3]
[385316760,1757771441067,-151.0,0.000246,3]
[385316761,1757771441077,-151.0,0.000246,3]
[385316762,1757771441087,-151.0,0.000246,3]
[385316763,1757771441096,-151.0,0.000246,3]
[385316764,1757771441105,-151.0,0.000246,3]
[385316765,1757771441114,-151.0,0.000246,3]
[385316766,1757771441125,-151.0,0.000246,3]
[385316767,1757771441134,-151.0,0.000246,3]
[385316768,1757771441143,-151.0,0.000246,3]
[385316769,1757771441153,-151.0,0.000246,3]
[385316770,1757771441162,-151.0,0.000246,3]
[385316771,1757771441172,-151.0,0.000246,3]
[385316772,1757771441182,-151.0,0.000246,3]
[385316773,1757771441191,-151.0,0.000246,3]
[385316774,1757771441200,-151.0,0.000246,3]
[385316775,1757771441209,-151.0,0.000246,3]
[385316776,1757771441219,-151.0,0.000246,3]
[385316777,1757771441228,-172.23163197,0.000246,3]
[385316778,1757771441239,-151.0,0.000246,3]
[385316779,1757771441250,-151.0,0.000246,3]
[385316780,1757771441259,-151.0,0.000246,3]
[385316781,1757771441268,-151.0,0.000246,3]
[385316782,1757771441278,-175.636924,0.000246,3]
[385316783,1757771441287,-204.04333628,0.000246,3]
[385316784,1757771441296,-151.0,0.000246,3]
[385316785,1757771441305,-151.0,0.000246,3]
[385316786,1757771441314,-151.0,0.000246,3]
[385316787,1757771441323,-151.0,0.000246,3]
[385316788,1757771441332,-151.0,0.000246,3]
[385316789,1757771441341,-151.0,0.000246,3]
[385316790,1757771441351,-161.0,0.00024623,3]
[385316791,1757771441360,-1058.0,0.00024623,3]
[385316792,1757771441369,-1058.0,0.00024623,3]
[385316793,1757771441382,-1058.0,0.00024623,3]
[385316794,1757771441391,-1058.0,0.00024623,3]
[385316795,1757771441402,-1058.0,0.00024623,3]
[385316796,1757771441411,-1058.0,0.00024623,3]
[385316797,1757771441421,-1058.0,0.00024623,3]
[385316798,1757771441430,-1058.0,0.00024623,3]
[385316799,1757771441439,-1058.0,0.00024623,3]
[385316800,1757771441449,-1058.0,0.00024623,3]
[385316801,1757771441458,-1058.0,0.00024623,3]
[385316802,1757771441468,-1058.0,0.00024623,3]
[385316803,1757771441477,-1058.0,0.00024623,3]
[385316804,1757771441486,-1058.0,0.00024623,3]
[385316805,1757771441495,-1058.0,0.00024623,3]
[385316806,1757771441504,-1058.0,0.00024623,3]
[385316807,1757771441513,-1003.70481252,0.00024626,2]
[385316808,1757771441523,-249.00656745,0.00024652,2]
[385316809,1757771441532,-500.0,0.00024655,2]
[385316810,1757771441542,-500.0,0.00024655,2]
[385316811,1757771441551,-500.0,0.00024655,2]
[385316812,1757771441560,-263.24625563,0.00024655,2]
[385316813,1757771441570,-500.0,0.00024655,2]
[385316814,1757771441579,-500.0,0.00024655,2]
[385316815,1757771441589,-500.0,0.00024655,2]
[385316816,1757771441598,-500.0,0.00024655,2]
[385316817,1757771441608,-500.0,0.00024655,2]
[385316818,1757771441617,-500.0,0.00024655,2]
[385316819,1757771441629,-500.0,0.00024655,2]
[385316820,1757771441638,-500.0,0.00024655,2]
[385316821,1757771441647,-500.0,0.00024655,2]
[385316822,1757771441657,-500.0,0.00024655,2]
[385316823,1757771441667,-500.0,0.00024655,2]
[385316824,1757771441676,-500.0,0.00024655,2]
[385316825,1757771441686,-527.09585979,0.00024655,2]
[385316826,1757771441695,-500.0,0.00024655,2]
[385316827,1757771441705,-500.0,0.00024655,2]
[385316828,1757771441715,-500.0,0.00024655,2]
[385316829,1757771441724,-500.0,0.00024655,2]
[385316830,1757771441733,-500.0,0.00024655,2]
[385316831,1757771441743,-500.0,0.00024655,2]
[385316832,1757771441753,-500.0,0.00024655,2]
[385316833,1757771441762,-490.15515716,0.00024655,2]
[385316834,1757771441771,-500.0,0.00024655,2]
[385316835,1757771441781,-500.0,0.00024655,2]
[385316836,1757771441790,-467.4851525,0.00024655,2]
[385316837,1757771441800,-467.27360555,0.00024655,2]
[385316838,1757771441811,-500.0,0.00024655,2]
[385316839,1757771441822,-500.0,0.00024655,2]
[385316840,1757771441833,-500.0,0.00024655,2]
[385316841,1757771441843,-500.0,0.00024655,2]
[385316842,1757771441853,-500.0,0.00024655,2]
[385316843,1757771441864,-500.0,0.00024655,2]
[385316844,1757771441874,-500.0,0.00024655,2]
[385316845,1757771441884,-500.0,0.00024655,2]
[385316846,1757771441893,-500.0,0.00024655,2]
[385316847,1757771441902,-500.0,0.00024655,2]
[385316848,1757771441912,-500.0,0.00024655,2]
[385316849,1757771441921,-500.0,0.00024655,2]
[385316850,1757771441931,-500.0,0.00024655,2]
[385316851,1757771441940,-500.0,0.00024655,2]
[385316852,1757771441949,-500.0,0.00024655,2]
[385316853,1757771441959,-500.0,0.00024655,2]
[385316854,1757771441967,-500.0,0.00024655,2]
[385316855,1757771441977,-500.0,0.00024655,2]
[385316856,1757771441986,-409.48693685,0.00024656,2]
[385316857,1757771441995,-151.0,0.00024656,7]
[385316858,1757771442005,-151.0,0.00024656,7]
[385316859,1757771442015,-151.0,0.00024656,7]
[385316860,1757771442025,-157.0,0.00024656,2]
[385316861,1757771442036,-500.0,0.00024656,2]
[385316862,1757771442046,-157.0,0.00024656,2]
[385316863,1757771442057,-282.11178274,0.00024656,2]
[385316864,1757771442068,-157.0,0.00024656,2]
[385316865,1757771442079,-157.0,0.00024656,2]
[385316866,1757771442089,-157.0,0.00024656,2]
[385316867,1757771442098,-151.0,0.00024656,7]
[385316868,1757771442109,-151.0,0.00024656,7]
[385316869,1757771442119,-278.345181,0.00024656,7]
[385316870,1757771442130,-151.0,0.00024656,7]
[385316871,1757771442140,-151.0,0.00024656,7]
[385316872,1757771442149,-151.0,0.00024656,7]
[385316873,1757771442158,-203.012916,0.00024656,7]
[385316874,1757771442167,-151.0,0.00024656,7]
[385316875,1757771442176,-151.0,0.00024656,7]
[385316876,1757771442186,-151.0,0.00024656,7]
[385316877,1757771442195,-151.0,0.00024656,7]
[385316878,1757771442206,-500.0,0.00024656,2]
[385316879,1757771442215,-500.0,0.00024656,2]
[385316880,1757771442224,-500.0,0.00024656,2]
[385316881,1757771442235,-500.0,0.00024656,2]
[385316882,1757771442249,-157.0,0.00024656,2]
[385316883,1757771442258,-181.88739911,0.00024656,2]
[385316884,1757771442267,-500.0,0.00024656,2]
[385316885,1757771442279,-157.0,0.00024656,2]
[385316886,1757771442290,-157.0,0.00024656,2]
[385316887,1757771442299,-500.0,0.00024656,2]
[385316888,1757771442309,-500.0,0.00024656,2]
[385316889,1757771442320,-151.0,0.00024656,7]
[385316890,1757771442329,-151.0,0.00024656,7]
[385316891,1757771442338,-151.0,0.00024656,7]
[385316892,1757771442347,-500.0,0.00024656,2]
[385316893,1757771442356,-500.0,0.00024656,2]
[385316894,1757771442366,-151.0,0.00024656,7]
[385316895,1757771442377,-157.0,0.00024656,2]
[385316896,1757771442386,-151.0,0.00024656,7]
[385316897,1757771442395,-157.0,0.00024656,2]
[385316898,1757771442404,-151.0,0.00024656,7]
[385316899,1757771442414,-168.935064,0.00024656,7]
[385316900,1757771442424,-168.935064,0.00024656,7]
[385316901,1757771442434,-168.935064,0.00024656,7]
[385316902,1757771442444,-168.935064,0.00024656,7]
[385316903,1757771442453,-151.0,0.00024656,7]
[385316904,1757771442463,-151.0,0.00024656,7]
[385316905,1757771442472,-151.0,0.00024656,7]
[385316906,1757771442482,-151.0,0.00024656,7]
[385316907,1757771442492,-213.05801,0.00024656,7]
[385316908,1757771442502,-213.05801,0.00024656,7]
[385316909,1757771442511,-213.05801,0.00024656,7]
[385316910,1757771442521,-213.05801,0.00024656,7]
[385316911,1757771442530,-183.288664,0.00024656,7]
[385316912,1757771442539,-183.288664,0.00024656,7]
[385316913,1757771442549,-183.288664,0.00024656,7]
[385316914,1757771442558,-183.288664,0.00024656,7]
[385316915,1757771442568,-151.0,0.00024656,7]
[385316916,1757771442577,-151.0,0.00024656,7]
[385316917,1757771442587,-151.0,0.00024656,7]
[385316918,1757771442597,-151.0,0.00024656,7]
[385316919,1757771442606,-151.0,0.00024656,7]
[385316920,1757771442616,-151.0,0.00024656,7]
[385316921,1757771442628,-151.0,0.00024656,7]
[385316922,1757771442637,-229.530168,0.00024656,7]
[385316923,1757771442647,-200.0,0.00024656,2]
[385316924,1757771442658,-450.54658907,0.00024657,3]
[385316925,1757771442667,-480.0,0.00024657,3]
[385316926,1757771442677,-482.15790531,0.00024657,3]
[385316927,1757771442686,-480.0,0.00024657,3]
[385316928,1757771442696,-480.0,0.00024657,3]
[385316929,1757771442706,-480.0,0.00024657,3]
[385316930,1757771442716,-480.0,0.00024657,3]
[385316931,1757771442725,-480.0,0.00024657,3]
[385316932,1757771442735,-480.0,0.00024657,3]
[385316933,1757771442744,-480.0,0.00024657,3]
[385316934,1757771442754,-480.0,0.00024657,3]
[385316935,1757771442763,-151.0,0.00024657,7]
[385316936,1757771442773,-151.0,0.00024657,7]
[385316937,1757771442952,-151.0,0.00024657,7]
[385316938,1757771442961,-238.395991,0.00024657,7]
[385316939,1757771442971,-482.21545096,0.00024657,3]
[385316940,1757771442980,-480.0,0.00024657,3]
[385316941,1757771442990,-480.0,0.00024657,3]
[385316942,1757771443000,-485.15676787,0.00024657,3]
[385316943,1757771443010,-480.0,0.00024657,3]
[385316944,1757771443020,-424.97058835,0.00024657,3]
[385316945,1757771443030,-489.55957842,0.00024657,3]
[385316946,1757771443040,-151.0,0.00024657,7]
[385316947,1757771443050,-229.526956,0.00024657,7]
[385316948,1757771443059,-480.0,0.00024657,3]